bitfinex/quotes_SOLUSD_20250710
["timestamp","ask_amount","ask_price","bid_price","bid_amount"]
[1752122345351,13.00300375,157.55,157.54,3.71188558]
[1752122346056,6.34719136,157.55,157.54,3.71188558]
[1752122349384,6.65581239,157.55,157.54,3.71188558]
[1752122349576,18.79181043,157.55,157.53,0.06]
[1752122349782,6.79797396,157.54,157.53,0.06]
[1752122351165,13.14556822,157.54,157.53,0.06]
[1752122360090,6.48975583,157.54,157.53,0.06]
[1752122360295,13.15763997,157.54,157.53,0.06]
[1752122361396,35.51917441,157.54,157.53,1e-08]
[1752122365488,18.79181043,157.53,157.5,0.06]
[1752122365688,42.45976972,157.52,157.5,0.06]
[1752122365904,6.66788414,157.51,157.5,0.06]
[1752122366497,13.01668739,157.51,157.5,0.06]
[1752122368010,16.72857297,157.51,157.5,0.06]
[1752122369783,13.01668739,157.51,157.5,0.06]
[1752122370190,16.72857297,157.51,157.5,0.06]
[1752122371315,13.01668739,157.51,157.5,0.06]
[1752122377102,12.97404625,157.51,157.5,0.06]
[1752122380919,35.47774226,157.51,157.5,1e-08]
[1752122391502,31.79585668,157.51,157.5,1e-08]
[1752122391702,35.50774226,157.51,157.5,1e-08]
[1752122396624,13.14620782,157.51,157.5,1e-08]
[1752122396828,6.655243,157.51,157.5,5.30188559]
[1752122397020,0.03,157.51,157.5,5.30188559]
[1752122398116,0.03,157.51,157.5,20.14942791]
[1752122398319,0.03,157.51,157.5,5.30188559]
[1752122398534,0.03,157.51,157.5,1.59000001]
[1752122398736,0.03,157.51,157.5,5.30188559]
[1752122400838,0.03,157.51,157.5,1.59000001]
[1752122401041,0.03,157.51,157.5,5.30188559]
[1752122403229,0.03,157.51,157.5,3.71188559]
[1752122405044,6.37880325,157.51,157.5,3.71188559]
[1752122409826,12.94600463,157.51,157.5,3.71188559]
[1752122410026,6.37880325,157.51,157.5,3.71188559]
[1752122410256,12.94600463,157.51,157.5,3.71188559]
[1752122411342,6.37880325,157.51,157.5,3.71188559]
[1752122411531,12.94600463,157.51,157.5,1e-08]
[1752122411729,6.52096482,157.51,157.5,1e-08]
[1752122412037,13.0881662,157.51,157.5,1e-08]
[1752122414947,6.52096482,157.51,157.5,1e-08]
[1752122415148,13.0881662,157.51,157.5,1e-08]
[1752122415557,6.52096482,157.51,157.5,1e-08]
[1752122415747,13.0881662,157.51,157.5,1e-08]
[1752122416061,6.52096482,157.51,157.5,1e-08]
[1752122416258,13.0881662,157.51,157.5,1e-08]
[1752122416667,6.52096482,157.51,157.5,1e-08]
[1752122416871,13.0881662,157.51,157.5,1e-08]
[1752122417240,6.52096482,157.51,157.5,1e-08]
[1752122417452,13.0881662,157.51,157.5,1e-08]
[1752122417967,6.52096482,157.51,157.5,1e-08]
[1752122418265,13.0881662,157.51,157.5,1e-08]
[1752122418641,6.52096482,157.51,157.5,1e-08]
[1752122418965,13.0881662,157.51,157.5,1e-08]
[1752122419560,6.52096482,157.51,157.49,3.07188559]
[1752122419756,13.0881662,157.51,157.49,3.07188559]
[1752122419932,6.56720138,157.5,157.48,3.71188558]
[1752122420135,13.0881662,157.51,157.48,3.71188558]
[1752122420541,6.56720138,157.5,157.48,3.71188558]
[1752122422151,6.34960949,157.49,157.48,3.71188558]
[1752122429271,12.91681087,157.49,157.48,3.71188558]
[1752122429658,6.34960949,157.49,157.48,3.71188558]
[1752122429856,12.91653592,157.5,157.48,3.71188558]
[1752122430060,6.56720138,157.5,157.49,3.71188558]
[1752122430265,12.91653383,157.5,157.49,3.71188558]
[1752122436574,12.91653383,157.5,157.49,3.77188558]
[1752122436879,12.94653383,157.5,157.49,3.77188558]
[1752122446484,12.94653383,157.5,157.49,0.06]
[1752122446888,12.94653383,157.5,157.49,3.77188558]
[1752122448297,13.14556684,157.5,157.49,3.77188558]
[1752122453194,13.14556684,157.5,157.49,0.06]
[1752122453370,13.14556684,157.5,157.49,3.77188558]
[1752122464316,13.14556684,157.5,157.49,0.06]
[1752122464614,13.14556684,157.5,157.49,3.77188558]
[1752122466684,13.14063397,157.5,157.49,3.77188558]
[1752122477113,13.14063397,157.5,157.49,0.06]
[1752122477320,13.14063397,157.5,157.49,3.77188558]
[1752122494026,13.14063397,157.5,157.49,0.06]
[1752122494230,13.14063397,157.5,157.49,3.77188558]
[1752122494732,6.79130152,157.5,157.49,3.77188558]
[1752122495242,6.79130152,157.5,157.49,16.30729507]
[1752122495438,0.03,157.56,157.5,5.34708558]
[1752122495731,0.03,157.56,157.55,3.71188558]
[1752122495928,6.37678852,157.56,157.55,3.71188558]
[1752122496316,0.03,157.56,157.55,3.71188558]
[1752122509122,0.03,157.56,157.52,3.71188558]
[1752122513947,0.03,157.56,157.51,38.4286871]
[1752122514132,0.03,157.56,157.55,3.71188558]
[1752122515249,0.03,157.56,157.52,10.06025534]
[1752122515447,0.03,157.56,157.55,3.71188558]
[1752122515669,0.03,157.56,157.55,35.77188558]
[1752122518141,0.03,157.56,157.55,42.11907694]
[1752122520056,0.03,157.56,157.55,43.73137694]
[1752122520260,0.03,157.56,157.55,33.6723]
[1752122520438,0.03,157.56,157.55,37.38418558]
[1752122520634,0.03,157.56,157.55,43.73137694]
[1752122522252,0.03,157.56,157.55,37.38418558]
[1752122522451,0.03,157.56,157.55,43.73137694]
[1752122522839,0.03,157.57,157.55,43.73137694]
[1752122523043,0.03,157.57,157.56,3.71188558]
[1752122523769,0.03,157.57,157.56,10.0586741]
[1752122526749,0.03,157.62,157.61,3.71188558]
[1752122526951,0.03,157.62,157.61,35.77188558]
[1752122527564,0.03,157.62,157.61,32.06]
[1752122527780,0.03,157.62,157.61,35.77188558]
[1752122536178,0.03,157.62,157.61,29.77188558]
[1752122537958,0.03,157.62,157.61,3.71188558]
[1752122545268,0.03,157.62,157.6,32.06]
[1752122545484,0.03,157.62,157.61,3.71188558]
[1752122545965,0.03,157.62,157.61,2.39215858]
[1752122546970,0.03,157.62,157.61,2.45215858]
[1752122550574,0.03,157.62,157.61,8.79693365]
[1752122550800,0.03,157.63,157.61,8.79693365]
[1752122550967,0.03,157.63,157.62,35.75188558]
[1752122551977,0.03,157.63,157.62,42.09625812]
[1752122552898,0.03,157.63,157.62,35.75188558]
[1752122553404,0.03,157.63,157.62,3.71188558]
[1752122553569,0.03,157.63,157.62,35.75188558]
[1752122554590,0.03,157.63,157.62,3.71188558]
[1752122554790,0.03,157.63,157.62,35.75188558]
[1752122568612,0.03,157.63,157.62,35.81188558]
[1752122570815,0.03,157.63,157.62,32.1]
[1752122570987,0.03,157.63,157.62,35.81188558]
[1752122573708,0.03,157.63,157.62,3.77188558]
[1752122573920,0.03,157.63,157.62,35.81188558]
[1752122576712,0.03,157.63,157.62,42.15625812]
[1752122578408,0.03,157.64,157.62,50.13295812]
[1752122578597,0.1,157.67,157.66,26.0]
[1752122578784,0.1,157.67,157.66,61.75188558]
[1752122581786,0.1,157.67,157.63,88.7]
[1752122581787,6.44236062,157.67,157.63,88.7]
[1752122581989,0.1,157.67,157.66,3.71188558]
[1752122582191,0.1,157.67,157.66,35.75188558]
[1752122591115,0.1,157.67,157.66,35.81188558]
[1752122595137,0.1,157.67,157.66,57.0021908]
[1752122595318,0.1,157.68,157.67,18.5594279]
[1752122595523,0.1,157.69,157.67,18.5594279]
[1752122595720,0.1,157.69,157.68,50.5994279]
[1752122597129,0.1,157.69,157.68,56.94138629]
[1752122598554,0.1,157.69,157.68,145.64138629]
[1752122598747,0.1,157.72,157.68,145.64138629]
[1752122598947,6.63118239,157.77,157.72,18.64964886]
[1752122599150,0.1,157.78,157.76,3.71188558]
[1752122599326,6.43802701,157.78,157.77,35.73188558]
[1752122600240,0.1,157.78,157.77,35.73188558]
[1752122600544,6.4379389,157.78,157.77,35.73188558]
[1752122600924,6.4379389,157.78,157.77,37.80714878]
[1752122607369,0.1,157.78,157.77,37.80714878]
[1752122609753,6.4379389,157.78,157.77,5.78714878]
[1752122609953,6.4379389,157.78,157.77,37.80714878]
[1752122610340,6.4379389,157.78,157.77,32.02]
[1752122610542,6.4379389,157.78,157.77,37.80714878]
[1752122611448,6.4379389,157.78,157.77,32.02]
[1752122611758,6.4379389,157.78,157.77,37.80714878]
[1752122613637,6.4379389,157.78,157.77,32.02]
[1752122613849,6.4379389,157.78,157.77,37.80714878]
[1752122614053,6.4379389,157.78,157.77,32.02]
[1752122614240,6.4379389,157.78,157.77,37.80714878]
[1752122614641,6.4379389,157.78,157.77,32.02]
[1752122616253,6.4379389,157.78,157.76,37.80714878]
[1752122618361,6.4379389,157.78,157.76,5.78714878]
[1752122618558,6.4379389,157.78,157.76,37.78714878]
[1752122621163,6.4379389,157.78,157.76,5.78714878]
[1752122621370,28.06993493,157.78,157.75,32.0]
[1752122621861,28.06993493,157.78,157.74,5.78714878]
[1752122622063,28.06993493,157.78,157.74,37.78714878]
[1752122622449,28.06993493,157.78,157.74,5.78714878]
[1752122622844,25.98853796,157.78,157.74,3.70575181]
[1752122623048,3.70575181,157.76,157.73,32.0]
[1752122624963,5.79144379,157.76,157.73,32.0]
[1752122625346,6.33914421,157.75,157.73,32.0]
[1752122625547,6.33914421,157.75,157.72,5.79144379]
[1752122625748,6.33914421,157.75,157.72,37.79144379]
[1752122626045,6.33914421,157.75,157.73,5.79144379]
[1752122626567,6.33874239,157.76,157.73,5.79144379]
[1752122628856,12.12978441,157.77,157.73,5.79144379]
[1752122629871,27.97563596,157.77,157.73,5.79144379]
[1752122630076,27.97563596,157.77,157.72,32.0]
[1752122630373,27.97563596,157.77,157.73,5.79144379]
[1752122630878,27.97563596,157.77,157.71,32.02]
[1752122631175,27.97563596,157.77,157.73,5.79144379]
[1752122635759,22.18419217,157.77,157.74,5.79144379]
[1752122635954,22.21419217,157.77,157.74,5.79144379]
[1752122636278,6.65483863,157.76,157.74,5.79144379]
[1752122637764,6.65483863,157.76,157.75,5.79144379]
[1752122637964,6.36856159,157.77,157.75,5.79144379]
[1752122638270,6.36856159,157.77,157.76,5.79144379]
[1752122638776,13.01752166,157.77,157.76,5.79144379]
[1752122638976,6.36856159,157.77,157.76,5.79144379]
[1752122639776,13.01752166,157.77,157.76,5.79144379]
[1752122639978,6.36856159,157.77,157.76,5.79144379]
[1752122640290,13.01752166,157.77,157.76,5.79144379]
[1752122640457,13.01752166,157.77,157.71,39.89873411]
[1752122640661,13.01752166,157.77,157.76,5.79144379]
[1752122642460,13.01752166,157.77,157.72,6.34021346]
[1752122642672,13.01752166,157.77,157.76,5.79144379]
[1752122644785,13.01752166,157.77,157.76,3.70478457]
[1752122646688,13.04686347,157.77,157.76,3.70478457]
[1752122648800,16.75164804,157.77,157.72,3.70478457]
[1752122649094,10.38308645,157.76,157.72,3.70478457]
[1752122649610,3.70478457,157.75,157.71,5.24278457]
[1752122649788,10.38308645,157.76,157.72,3.70478457]
[1752122650091,3.70478457,157.74,157.69,6.4666]
[1752122650272,10.38308645,157.73,157.69,10.17138457]
[1752122650476,3.70478457,157.73,157.69,10.17138457]
[1752122650983,22.35657471,157.77,157.69,10.17138457]
[1752122650984,6.34034998,157.72,157.7,5.79291627]
[1752122652483,6.33994801,157.73,157.7,5.79291627]
[1752122652793,13.03151379,157.73,157.7,5.79291627]
[1752122655292,6.33994801,157.73,157.7,5.79291627]
[1752122655880,12.99845065,157.73,157.7,5.79291627]
[1752122658793,12.99845065,157.73,157.71,5.79291627]
[1752122659674,6.33994801,157.73,157.71,5.79291627]
[1752122659874,12.98174111,157.73,157.71,5.79291627]
[1752122660397,12.13246235,157.74,157.7,5.79291627]
[1752122660587,6.64152793,157.73,157.7,5.79291627]
[1752122661495,12.98164762,157.73,157.7,5.79291627]
[1752122661682,6.34011969,157.73,157.7,5.79291627]
[1752122661998,12.9814631,157.73,157.7,5.79291627]
[1752122662292,6.34011969,157.73,157.7,5.79291627]
[1752122662594,12.98914671,157.73,157.7,5.79291627]
[1752122662895,6.34011969,157.73,157.7,5.79291627]
[1752122663485,12.98914871,157.73,157.7,5.79291627]
[1752122665076,12.98914871,157.73,157.71,5.79291627]
[1752122665597,12.98914871,157.73,157.69,38.5266]
[1752122665772,12.98914871,157.73,157.71,5.79291627]
[1752122666799,12.98914871,157.73,157.7,5.79291627]
[1752122667401,12.98914871,157.73,157.69,38.5266]
[1752122667600,12.98914871,157.73,157.7,5.79291627]
[1752122669900,6.34011969,157.73,157.7,5.79291627]
[1752122670096,12.98307395,157.73,157.7,5.79291627]
[1752122670504,12.98307395,157.73,157.71,5.79291627]
[1752122670802,6.34011969,157.73,157.71,5.79291627]
[1752122672809,6.34011969,157.73,157.7,3.70714199]
[1752122673811,12.98298024,157.73,157.7,3.70714199]
[1752122673991,6.34011969,157.73,157.7,3.70714199]
[1752122675888,6.33954608,157.74,157.7,3.70714199]
[1752122676093,12.98201066,157.74,157.7,3.70714199]
[1752122676589,16.68915265,157.74,157.7,3.70714199]
[1752122676806,10.04668807,157.74,157.7,3.70714199]
[1752122677206,6.33954608,157.74,157.7,3.70714199]
[1752122677595,12.98167608,157.74,157.7,3.70714199]
[1752122679246,0.03,157.73,157.7,3.70714199]
[1752122679623,3.70714199,157.72,157.69,0.06]
[1752122679822,10.34927199,157.72,157.69,0.06]
[1752122680048,6.64213,157.72,157.69,0.06]
[1752122680435,10.52143356,157.73,157.69,3.76714199]
[1752122681543,6.34034998,157.72,157.69,3.76714199]
[1752122681750,6.64213,157.72,157.7,3.70714199]
[1752122681944,6.81429157,157.73,157.7,3.70714199]
[1752122682747,13.15439609,157.73,157.7,3.70714199]
[1752122683947,16.86153808,157.73,157.69,3.76714199]
[1752122684144,6.64213,157.72,157.69,3.76714199]
[1752122684931,12.98270049,157.72,157.69,0.06]
[1752122685143,12.98270049,157.72,157.69,3.76714199]
[1752122685342,12.98270049,157.72,157.69,0.06]
[1752122685529,6.34057049,157.72,157.69,3.76714199]
[1752122685849,13.01417552,157.72,157.69,3.76714199]
[1752122686029,6.34057049,157.72,157.69,3.76714199]
[1752122686851,13.01417552,157.72,157.69,3.76714199]
[1752122687950,13.01417552,157.72,157.69,0.06]
[1752122688147,6.34057049,157.72,157.69,3.76714199]
[1752122688350,13.02333401,157.72,157.69,3.76714199]
[1752122688847,13.02333401,157.72,157.69,0.06]
[1752122689046,13.02333401,157.72,157.69,3.76714199]
[1752122690452,6.68276352,157.71,157.69,3.76714199]
[1752122690838,13.02333401,157.72,157.69,3.76714199]
[1752122692333,6.68276352,157.71,157.69,3.76714199]
[1752122694255,6.34057049,157.72,157.69,3.76714199]
[1752122694435,6.69494259,157.71,157.69,3.76714199]
[1752122694636,6.34057049,157.72,157.69,3.76714199]
[1752122694929,6.69494259,157.71,157.69,3.76714199]
[1752122695167,6.34057049,157.72,157.69,3.76714199]
[1752122695358,6.69494259,157.71,157.69,3.76714199]
[1752122695660,6.34057049,157.72,157.69,3.76714199]
[1752122695844,6.69519591,157.71,157.69,0.06]
[1752122696159,6.69547918,157.7,157.69,0.06]
[1752122696369,6.69547918,157.71,157.69,0.06]
[1752122696664,6.69547918,157.7,157.69,0.06]
[1752122696868,13.03639685,157.71,157.69,0.06]
[1752122697034,6.69547918,157.7,157.69,0.06]
[1752122697449,6.34091767,157.71,157.69,0.06]
[1752122697956,10.04763531,157.72,157.69,3.76714199]
[1752122698136,6.69470088,157.71,157.69,3.76714199]
[1752122698454,10.04763531,157.72,157.69,3.76714199]
[1752122698657,6.69465951,157.71,157.69,0.06]
[1752122698850,10.04763531,157.72,157.69,0.06]
[1752122699035,5.69465951,157.71,157.69,0.06]
[1752122699236,10.04763531,157.72,157.69,0.06]
[1752122699435,10.04763531,157.72,157.69,3.76714199]
[1752122699758,6.34049332,157.72,157.69,3.76714199]
[1752122700259,0.03,157.73,157.71,3.70714199]
[1752122700438,0.03,157.73,157.72,37.30324199]
[1752122701154,0.03,157.73,157.72,33.5961]
[1752122701355,0.03,157.73,157.72,37.30324199]
[1752122702367,0.03,157.73,157.72,43.64359197]
[1752122712702,0.03,157.73,157.72,33.5961]
[1752122712872,0.03,157.73,157.72,31.98]
[1752122713068,0.03,157.73,157.71,3.70714199]
[1752122713272,0.03,157.73,157.72,31.98]
[1752122722708,0.03,157.73,157.71,3.76714199]
[1752122723012,0.03,157.73,157.72,35.68714199]
[1752122725588,0.03,157.73,157.72,42.02749197]
[1752122728008,0.03,157.73,157.72,49.93459197]
[1752122728621,0.03,157.73,157.72,138.63459197]
[1752122729505,0.03,157.73,157.72,157.28424083]
[1752122730023,0.03,157.77,157.76,3.70714199]
[1752122730192,0.03,157.77,157.76,35.68714199]
[1752122731423,0.03,157.77,157.76,42.02588438]
[1752122733402,0.03,157.77,157.76,35.68714199]
[1752122733800,0.03,157.77,157.76,3.70714199]
[1752122734120,0.03,157.77,157.76,31.98]
[1752122734424,0.03,157.77,157.76,35.68714199]
[1752122734922,0.03,157.77,157.76,37.76814337]
[1752122744829,0.03,157.77,157.76,31.98]
[1752122745030,0.03,157.77,157.76,37.76814337]
[1752122751142,0.03,157.77,157.76,31.98]
[1752122751443,0.03,157.77,157.76,37.76814337]
[1752122751836,0.03,157.77,157.76,31.98]
[1752122752337,0.03,157.77,157.76,37.76814337]
[1752122752951,0.03,157.77,157.76,31.98]
[1752122755734,5.81814337,157.77,157.72,0.06]
[1752122755953,5.78814337,157.75,157.72,0.06]
[1752122756252,5.78814337,157.74,157.72,32.04]
[1752122756634,5.78814337,157.75,157.72,32.04]
[1752122756834,3.70703444,157.75,157.72,32.04]
[1752122757035,6.33954608,157.74,157.72,32.04]
[1752122758153,6.33954608,157.74,157.72,0.06]
[1752122758360,6.33954608,157.74,157.72,32.04]
[1752122758661,6.33954608,157.74,157.72,0.06]
[1752122758860,6.33954608,157.74,157.72,32.04]
[1752122759445,6.33874239,157.76,157.72,32.04]
[1752122759749,16.6970641,157.76,157.72,35.74703444]
[1752122759949,6.65128727,157.75,157.72,35.74703444]
[1752122760350,12.99002966,157.76,157.72,35.74703444]
[1752122760747,16.6970641,157.76,157.72,35.74703444]
[1752122760947,6.65128727,157.75,157.72,32.04]
[1752122761163,6.33954608,157.74,157.72,32.04]
[1752122761542,6.33954608,157.74,157.72,0.06]
[1752122761739,6.33954608,157.74,157.72,32.04]
[1752122764061,6.51050219,157.77,157.72,32.04]
[1752122764370,3.70703444,157.75,157.72,32.04]
[1752122764667,10.35763009,157.76,157.72,32.04]
[1752122765473,3.70703444,157.75,157.72,32.04]
[1752122766273,6.36954608,157.74,157.72,32.04]
[1752122766781,6.36954608,157.74,157.72,35.74703444]
[1752122767158,0.03,157.74,157.72,35.74703444]
[1752122767470,0.03,157.74,157.73,3.70703444]
[1752122772163,3.73703444,157.74,157.72,0.06]
[1752122772366,3.70703444,157.73,157.72,0.06]
[1752122772570,22.49884487,157.73,157.72,0.06]
[1752122772798,29.12892232,157.73,157.72,0.06]
[1752122774177,28.83879288,157.73,157.72,0.06]
[1752122774895,30.92658016,157.73,157.72,0.06]
[1752122775453,37.5546853,157.73,157.72,0.06]
[1752122782284,31.75986358,157.73,157.72,0.06]
[1752122782485,37.5546853,157.73,157.72,0.06]
[1752122788720,37.5846853,157.73,157.72,0.06]
[1752122790419,0.14216157,157.72,157.71,0.06]
[1752122790614,12.56508843,157.72,157.71,0.06]
[1752122791128,44.54508843,157.72,157.71,0.06]
[1752122792829,50.88543841,157.72,157.71,0.06]
[1752122796837,48.79946586,157.72,157.71,0.06]
[1752122809859,44.94845512,157.72,157.71,0.06]
[1752122810243,12.96845512,157.72,157.71,0.06]
[1752122810443,16.81946586,157.72,157.71,0.06]
[1752122811462,16.84946586,157.72,157.71,0.06]
[1752122811844,26.0,157.7,157.66,0.06]
[1752122812043,3.70884917,157.67,157.66,0.06]
[1752122812239,3.85101074,157.67,157.66,0.06]
[1752122812552,10.47911588,157.67,157.66,0.06]
[1752122814279,16.8214765,157.67,157.66,0.06]
[1752122828393,13.11262733,157.67,157.66,0.06]
[1752122831897,16.8214765,157.67,157.66,0.06]
[1752122834588,35.47112536,157.67,157.66,0.06]
[1752122835796,31.76227619,157.67,157.66,0.06]
[1752122835989,35.47112536,157.67,157.66,0.06]
[1752122839492,31.76227619,157.67,157.66,0.06]
[1752122839688,35.47112536,157.67,157.66,0.06]
[1752122843008,31.76227619,157.67,157.66,0.06]
[1752122843205,35.47112536,157.67,157.66,0.06]
[1752122843710,31.76227619,157.67,157.66,0.06]
[1752122843895,35.47112536,157.67,157.66,0.06]
[1752122849302,35.47112536,157.67,157.66,1e-08]
[1752122850987,57.76227619,157.67,157.66,1e-08]
[1752122851193,89.74227619,157.67,157.66,1e-08]
[1752122851391,93.45112536,157.67,157.66,1e-08]
[1752122851592,89.74227619,157.67,157.66,1e-08]
[1752122853309,39.11262733,157.67,157.66,1e-08]
[1752122853511,6.62810514,157.67,157.66,3.70884918]
[1752122853693,6.62810514,157.68,157.66,5.36414918]
[1752122853888,0.03,157.69,157.67,3.70884917]
[1752122854200,0.03,157.69,157.68,3.70884917]
[1752122855839,0.03,157.69,157.66,7.99804214]
[1752122856005,0.03,157.69,157.68,3.70884917]
[1752122867036,0.03,157.69,157.68,24.88620424]
[1752122867243,0.03,157.72,157.68,32.93990424]
[1752122867445,0.03,157.72,157.71,3.70884917]
[1752122872820,0.03,157.72,157.69,31.98]
[1752122873127,0.03,157.72,157.71,3.70884917]
[1752122879752,0.03,157.74,157.72,6.3698]
[1752122879920,0.03,157.74,157.73,35.66884917]
[1752122880737,0.03,157.74,157.73,3.70884917]
[1752122880927,0.03,157.74,157.73,35.82884917]
[1752122882941,0.03,157.74,157.73,37.88877643]
[1752122883451,0.03,157.74,157.73,5.78877643]
[1752122887429,6.36954608,157.74,157.72,5.78877643]
[1752122887637,6.36954608,157.74,157.71,33.7136]
[1752122887842,6.36954608,157.74,157.72,5.78877643]
[1752122888451,0.03,157.74,157.72,5.78877643]
[1752122891546,0.03,157.74,157.73,5.78877643]
[1752122895954,0.03,157.74,157.73,44.22872444]
[1752122896249,0.03,157.74,157.73,50.57662444]
[1752122900855,0.03,157.77,157.73,56.36540087]
[1752122901041,0.03,157.77,157.76,11.57755286]
[1752122901236,0.03,157.77,157.76,43.65755286]
[1752122906163,0.03,157.77,157.76,49.99629525]
[1752122908361,0.03,157.77,157.76,37.88877643]
[1752122909569,0.03,157.77,157.76,43.67755286]
[1752122911064,0.03,157.77,157.76,32.1]
[1752122911244,0.03,157.77,157.76,37.88877643]
[1752122914968,6.81277319,157.8,157.76,37.88877643]
[1752122915157,6.81277319,157.8,157.78,5.78877643]
[1752122916175,6.33753723,157.79,157.78,5.78877643]
[1752122919067,13.00782932,157.8,157.78,5.78877643]
[1752122919368,6.33633253,157.82,157.79,5.78877643]
[1752122919571,13.01694404,157.82,157.81,5.78877643]
[1752122919776,13.15910561,157.82,157.81,5.78877643]
[1752122920154,0.1,157.83,157.81,5.78877643]
[1752122920470,0.1,157.83,157.82,5.78877643]
[1752122922557,6.43593106,157.83,157.82,5.78877643]
[1752122922954,6.43593106,157.83,157.77,1.6381]
[1752122923154,6.43593106,157.83,157.81,5.78877643]
[1752122924970,0.14216157,157.82,157.78,32.1]
[1752122925172,0.14216157,157.82,157.8,5.78877643]
[1752122925387,0.14216157,157.82,157.79,5.78877643]
[1752122926274,0.14216157,157.8,157.74,0.06]
[1752122926574,0.14216157,157.78,157.76,5.78877643]
[1752122926782,6.33753723,157.79,157.74,0.06]
[1752122926783,13.02690494,157.79,157.77,5.78877643]
[1752122926955,6.33753723,157.79,157.77,5.78877643]
[1752122927164,13.02732644,157.79,157.77,5.78877643]
[1752122934689,13.16948801,157.79,157.78,5.78877643]
[1752122937084,13.16948801,157.79,157.77,5.78877643]
[1752122944194,13.02772811,157.78,157.77,5.78877643]
[1752122946066,6.3379389,157.78,157.77,5.78877643]
[1752122946788,6.3379389,157.78,157.77,3.70442478]
[1752122953098,13.02772811,157.78,157.77,3.70442478]
[1752122954200,6.3379389,157.78,157.77,3.70442478]
[1752122954386,13.02772811,157.78,157.77,3.70442478]
[1752122955087,6.3379389,157.78,157.77,3.70442478]
[1752122955275,13.02772811,157.78,157.77,3.70442478]
[1752122956187,6.3379389,157.78,157.77,3.70442478]
[1752122956386,13.00639852,157.78,157.77,3.70442478]
[1752122957080,6.3379389,157.78,157.77,3.70442478]
[1752122957286,13.00639852,157.78,157.77,3.70442478]
[1752122958096,6.66845962,157.79,157.77,3.70442478]
[1752122958299,6.33673404,157.81,157.78,3.70442478]
[1752122958489,6.33645547,157.82,157.8,3.70442478]
[1752122958692,6.33645547,157.82,157.81,3.70442478]
[1752122958878,13.00345732,157.82,157.81,3.70442478]
[1752122959487,13.00345732,157.82,157.78,1.5285]
[1752122959804,6.33645547,157.82,157.81,3.70442478]
[1752122959983,13.00263984,157.82,157.81,3.70442478]
[1752122960606,13.00263984,157.82,157.78,1.5285]
[1752122960810,13.00263984,157.82,157.81,3.70442478]
[1752122962701,13.00263984,157.82,157.78,1.5285]
[1752122962900,13.00263984,157.82,157.81,3.70442478]
[1752122964499,13.03263984,157.82,157.81,3.70442478]
[1752122965699,6.36645547,157.82,157.81,3.70442478]
[1752122966614,6.36645547,157.82,157.78,1.5285]
[1752122966615,0.14216157,157.81,157.78,3.70442478]
[1752122966788,10.51192787,157.81,157.77,0.06]
[1752122966992,3.84658635,157.81,157.77,0.06]
[1752122967188,0.14216157,157.78,157.77,0.06]
[1752122968421,0.14216157,157.78,157.77,3.76442478]
[1752122968606,6.48010047,157.78,157.77,0.06]
[1752122972500,13.15064647,157.78,157.77,0.06]
[1752122978017,6.670546,157.78,157.77,5.8490025]
[1752122978216,6.670546,157.81,157.77,5.8490025]
[1752122978419,6.670546,157.81,157.8,5.7890025]
[1752122979008,13.00755503,157.81,157.8,5.7890025]
[1752122985735,13.00755503,157.81,157.8,0.9778545]
[1752122985937,6.33700903,157.81,157.8,0.9778545]
[1752122986714,28.99155171,157.81,157.79,5.7890025]
[1752122986913,6.670546,157.8,157.78,5.7890025]
[1752122988935,0.14216157,157.8,157.78,5.7890025]
[1752122989132,6.74797149,157.8,157.78,5.7890025]
[1752122990850,6.74797149,157.8,157.78,3.70385622]
[1752122991145,6.33753723,157.79,157.78,3.70385622]
[1752122999726,6.60580992,157.8,157.78,3.70385622]
[1752123000047,6.63580992,157.81,157.79,3.70385622]
[1752123000256,0.03,157.81,157.8,5.21555622]
[1752123002847,0.03,157.81,157.8,7.29457673]
[1752123005450,0.03,157.81,157.8,39.29457673]
[1752123011056,0.03,157.81,157.8,33.5117]
[1752123011230,0.03,157.81,157.8,39.29457673]
[1752123012039,0.03,157.81,157.77,88.76]
[1752123012233,0.03,157.81,157.8,5.78287673]
[1752123013956,6.36673404,157.81,157.8,5.78287673]
[1752123014434,6.36673404,157.81,157.79,5.78287673]